bitfinex-derivatives/quotes_SOLF0:USTF0_20250127
["timestamp","ask_amount","ask_price","bid_price","bid_amount"]
[1737996228287,4.3482,230.02,229.89,0.02862609]
[1737996228487,1.3302,230.07,229.89,0.02862609]
[1737996228683,1.3302,230.07,229.89,28.24207242]
[1737996229287,0.02923377,230.0,229.96,0.02846916]
[1737996229489,4.37783377,230.0,229.96,0.02846916]
[1737996230090,0.02923377,230.0,229.96,0.02846916]
[1737996230493,0.02923377,230.0,229.98,4.3489]
[1737996230692,1.3142,230.11,229.96,0.02846916]
[1737996230887,1.3142,230.11,229.97,28.24207242]
[1737996231093,2.8005,230.19,230.01,28.24207242]
[1737996231289,2.8005,230.19,230.05,28.24207242]
[1737996231492,1.383,230.2,230.09,4.3468]
[1737996231686,5.7279,230.2,230.06,1.3014]
[1737996231889,0.02810119,230.17,230.12,0.03312127]
[1737996232086,4.1744,230.27,230.06,1.3014]
[1737996232393,0.02926524,230.17,230.12,0.0289249]
[1737996232896,0.03252141,230.17,230.12,0.03292527]
[1737996233498,28.24207242,230.39,230.16,28.24207242]
[1737996233701,1.3739,230.38,230.16,28.24207242]
[1737996233895,28.24207242,230.35,230.16,28.24207242]
[1737996234191,1.3739,230.38,230.16,28.24207242]
[1737996234587,1.3739,230.38,230.2,28.24207242]
[1737996234792,0.02770664,230.29,230.25,0.02812555]
[1737996235095,1.3739,230.38,230.25,0.02812555]
[1737996235294,4.342,230.35,230.25,0.02812555]
[1737996235595,0.02740373,230.29,230.28,28.24207242]
[1737996235790,5.6687,230.39,230.28,32.58527242]
[1737996235991,28.24207242,230.55,230.32,28.24207242]
[1737996236297,4.3409,230.41,230.32,28.24207242]
[1737996236498,28.24207242,230.47,230.28,28.24207242]
[1737996236796,4.3399,230.46,230.28,32.58517242]
[1737996236997,0.0284406,230.4,230.35,0.03105013]
[1737996237197,1.329,230.53,230.36,28.24207242]
[1737996237398,4.3401,230.45,230.36,29.62687242]
[1737996237601,1.329,230.53,230.36,29.62687242]
[1737996237799,2.6693,230.57,230.36,29.62687242]
[1737996238502,2.6693,230.57,230.44,0.02838369]
[1737996238891,2.6693,230.57,230.44,28.27045611]
[1737996239298,1.3274,230.57,230.44,28.27045611]
[1737996239497,4.3386,230.53,230.44,28.27045611]
[1737996239897,1.3274,230.57,230.44,0.02838369]
[1737996240099,28.24207242,230.55,230.44,0.02838369]
[1737996240295,28.24207242,230.51,230.44,8.369e-05]
[1737996240498,1.3788,230.5,230.44,8.369e-05]
[1737996240695,4.3399,230.46,230.44,8.369e-05]
[1737996240900,1.4073,230.45,230.2,28.24207242]
[1737996241103,28.24207242,230.4,230.2,28.24207242]
[1737996241298,1.3048,230.39,230.16,28.24207242]
[1737996241603,1.3048,230.39,230.2,28.24207242]
[1737996241904,1.3048,230.39,230.06,3.88]
[1737996241905,1.3048,230.39,230.24,28.24207242]
[1737996242199,1.3048,230.39,230.2,28.24207242]
[1737996242402,4.3431,230.29,230.27,0.03333671]
[1737996242599,0.02838369,230.32,230.16,28.24207242]
[1737996242801,4.3422,230.34,230.24,28.24207242]
[1737996243004,1.3048,230.39,230.24,28.24207242]
[1737996243208,1.3048,230.39,230.2,28.24207242]
[1737996243598,1.3048,230.39,229.94,234.57104015]
[1737996243907,28.24207242,230.15,229.96,28.24207242]
[1737996244104,28.24207242,230.19,229.96,29.64297242]
[1737996244505,0.03139567,230.1,230.02,4.348]
[1737996244810,0.03139567,230.1,230.03,0.86945181]
[1737996245003,0.03139567,230.1,230.04,4.3476]
[1737996245203,0.03139567,230.1,230.05,0.86937622]
[1737996245405,0.03139567,230.1,230.0,28.24207242]
[1737996245703,0.03139567,230.1,230.04,0.02967418]
[1737996246310,0.03139567,230.1,230.04,4.37727418]
[1737996246809,0.03139567,230.1,230.04,0.02967418]
[1737996249403,0.03139567,230.1,230.04,28.2717466]
[1737996249604,5.7014,230.26,230.08,28.24207242]
[1737996249809,1.3577,230.26,230.09,1.3356]
[1737996250010,1.3577,230.26,230.16,4.3455]
[1737996250206,1.3577,230.26,230.09,1.3356]
[1737996250802,0.02825603,230.2,230.15,0.02882986]
[1737996251000,1.3577,230.38,230.18,28.24207242]
[1737996251204,1.3577,230.38,230.22,28.24207242]
[1737996251401,28.24207242,230.48,230.26,28.24207242]
[1737996251610,4.1891,230.51,230.34,28.24207242]
[1737996251810,1.3577,230.51,230.34,28.24207242]
[1737996252004,28.24207242,230.6,230.32,3.96]
[1737996252206,3.96,230.65,230.32,3.96]
[1737996252207,9.349e-05,230.45,230.4,28.2733494]
[1737996252407,4.3371,230.61,230.44,28.24207242]
[1737996252600,5.44553559,230.69,230.52,28.24207242]
[1737996252805,4.336,230.67,230.55,4.338]
[1737996253005,4.336,230.67,230.52,28.24207242]
[1737996253201,5.44553559,230.69,230.52,28.24207242]
[1737996253411,4.3361,230.66,230.54,4.3383]
[1737996253609,5.44553559,230.69,230.58,0.03223579]
[1737996253807,28.24207242,230.68,230.58,0.03223579]
[1737996254315,28.24207242,230.6,230.4,28.24207242]
[1737996254516,4.3388,230.52,230.37,4.3415]
[1737996254709,28.24207242,230.56,230.36,28.24207242]
[1737996255616,0.03035575,230.48,230.44,0.03121488]
[1737996257713,28.24207242,230.68,230.46,28.24207242]
[1737996258012,30.93717242,230.68,230.46,28.24207242]
[1737996258213,28.24207242,230.64,230.42,28.24207242]
[1737996258614,4.3379,230.57,230.46,4.3398]
[1737996258818,28.24207242,230.64,230.42,28.24207242]
[1737996259017,30.93717242,230.68,230.49,0.0294405]
[1737996259218,29.58537242,230.68,230.49,4.3686405]
[1737996259516,2.7489,230.67,230.46,28.24207242]
[1737996259710,2.7489,230.67,230.56,0.02928585]
[1737996259908,4.3377,230.58,230.56,0.02928585]
[1737996260209,2.7489,230.67,230.56,0.02928585]
[1737996261114,28.24207242,230.64,230.42,28.24207242]
[1737996261415,4.3377,230.58,230.43,4.3403]
[1737996261611,28.24207242,230.6,230.38,28.24207242]
[1737996262509,0.03254263,230.51,230.47,0.02868071]
[1737996263015,28.24207242,230.6,230.47,0.02868071]
[1737996263210,0.030823,230.51,230.47,0.02868071]
[1737996263613,28.24207242,230.6,230.47,0.02868071]
[1737996263813,0.03173799,230.51,230.47,0.02868071]
[1737996264115,28.24207242,230.56,230.34,28.24207242]
[1737996264316,28.24207242,230.64,230.41,28.24207242]
[1737996265320,0.03115618,230.55,230.5,0.03008301]
[1737996265716,0.03115618,230.55,230.41,28.24207242]
[1737996265919,0.03115618,230.55,230.5,0.0322558]
[1737996266218,2.7489,230.67,230.5,0.0322558]
[1737996266417,0.02902173,230.55,230.5,0.0322558]
[1737996266613,2.7489,230.67,230.49,28.24207242]
[1737996266917,0.02851545,230.55,230.51,4.3388]
[1737996267112,1.3518,230.67,230.49,28.24207242]
[1737996267424,0.03188965,230.55,230.54,4.3383]
[1737996267619,1.3293,230.72,230.53,28.24207242]
[1737996267821,2.6559,230.72,230.49,28.24207242]
[1737996268020,33.68760801,230.69,230.49,28.24207242]
[1737996268222,4.3379,230.57,230.49,28.24207242]
[1737996268423,33.68760801,230.69,230.49,28.24207242]
[1737996268618,4.3366,230.63,230.52,4.3387]
[1737996268813,0.03160414,230.61,230.57,0.0321836]
[1737996270324,0.03160414,230.61,230.57,8.36e-05]
[1737996270816,4.3376,230.58,230.57,8.36e-05]
[1737996273225,5.7345,230.58,230.57,8.36e-05]
[1737996274220,1.3308,230.59,230.57,8.36e-05]
[1737996275122,0.03160414,230.61,230.57,8.36e-05]
[1737996277725,4.3376,230.58,230.57,8.36e-05]
[1737996278523,4.3374,230.59,230.57,8.36e-05]
[1737996278719,0.03160414,230.61,230.57,8.36e-05]
[1737996279727,4.3374,230.59,230.57,8.36e-05]
[1737996279928,0.03160414,230.61,230.57,8.36e-05]
[1737996280130,4.3374,230.59,230.57,8.36e-05]
[1737996280622,0.03160414,230.61,230.57,8.36e-05]
[1737996284431,4.3376,230.58,230.57,8.36e-05]
[1737996286128,0.03160414,230.61,230.57,8.36e-05]
[1737996286334,0.03160414,230.61,230.6,32.57927242]
[1737996286633,4.0409,230.75,230.6,28.24207242]
[1737996287832,4.36320916,230.7,230.65,0.02764272]
[1737996288032,0.02790916,230.7,230.65,0.02764272]
[1737996289033,0.02790916,230.7,230.65,4.36384272]
[1737996289230,0.02790916,230.7,230.65,0.02764272]
[1737996290636,4.3359,230.67,230.65,0.02764272]
[1737996290936,0.02790916,230.7,230.65,0.02764272]
[1737996291334,4.3357,230.68,230.65,0.02764272]
[1737996291637,0.02790916,230.7,230.65,0.02764272]
[1737996292929,4.3361,230.66,230.65,0.02764272]
[1737996294238,4.3361,230.66,230.56,28.24207242]
[1737996294438,1.3048,230.75,230.56,28.24207242]
[1737996294635,28.24207242,230.72,230.52,28.24207242]
[1737996294841,28.24207242,230.72,230.44,1.4404]
[1737996294842,4.34,230.46,230.44,234.57104015]
[1737996295139,28.24207242,230.55,230.44,234.57104015]
[1737996295339,4.3396,230.48,230.44,234.57104015]
[1737996295539,4.3396,230.48,230.47,0.028463]
[1737996296242,0.03071532,230.52,230.47,0.028463]
[1737996296644,0.03071532,230.52,230.44,234.57104015]
[1737996296943,0.03071532,230.52,230.31,1.3939]
[1737996297139,0.03071532,230.52,230.32,28.24207242]
[1737996297445,2.6453,230.54,230.36,4.3416]
[1737996297944,0.03229462,230.47,230.43,0.03047812]
[1737996299949,4.3401,230.45,230.43,0.03047812]
[1737996300443,4.3413,230.39,230.31,1.3939]
[1737996300745,28.24207242,230.44,230.28,177.59395097]
[1737996300942,4.3424,230.33,230.28,177.59395097]
[1737996301142,28.24207242,230.36,230.28,175.42455097]
[1737996301341,28.24207242,230.32,230.28,136.80532331]
[1737996301544,28.24207242,230.32,230.07,28.24207242]
[1737996301745,28.24207242,230.28,230.07,28.24207242]
[1737996301942,28.24207242,230.32,230.11,28.24207242]
[1737996302147,1.3266,230.35,230.15,28.24207242]
[1737996302540,28.24207242,230.4,230.15,28.24207242]
[1737996302749,28.24207242,230.44,230.23,28.27390455]
[1737996303048,28.24207242,230.44,230.24,4.0159]
[1737996303351,5.82907048,230.34,230.29,4.343]
[1737996303547,5.82907048,230.34,230.24,4.0159]
[1737996303743,5.82907048,230.34,230.27,28.24207242]
[1737996303744,1.48807048,230.34,230.27,28.24207242]
[1737996303951,8.80611144,230.35,230.27,28.24207242]
[1737996304145,0.03292077,230.33,230.28,0.03333479]
[1737996304846,28.24207242,230.32,230.13,4.346]
[1737996305050,28.24207242,230.28,230.07,28.24207242]
[1737996305646,1.4318,230.31,230.07,28.24207242]
[1737996305846,1.4318,230.31,230.11,28.24207242]
[1737996306046,0.02771628,230.21,230.17,0.03314649]
[1737996306446,2.828,230.31,230.11,28.24207242]
[1737996306754,0.03125619,230.21,230.17,0.02848892]
[1737996307150,2.828,230.31,230.11,28.24207242]
[1737996307351,3.601e-05,230.21,230.19,28.24207242]
[1737996307551,3.601e-05,230.21,230.2,4.3447]
[1737996307754,28.24207242,230.36,230.15,28.24207242]
[1737996307952,28.24207242,230.32,230.11,28.24207242]
[1737996308152,4.3439,230.25,230.11,28.24207242]
[1737996308351,28.24207242,230.32,230.11,28.24207242]
[1737996308657,0.0314071,230.2,230.16,4.37403839]
[1737996308856,0.0314071,230.2,230.16,0.02863839]
[1737996309052,28.24207242,230.32,230.11,28.24207242]
[1737996309256,0.02976951,230.2,230.18,4.345]
[1737996309460,28.24207242,230.32,230.12,2.7728]
[1737996309652,28.24207242,230.32,230.05,1.316]
[1737996309653,28.24207242,230.2,230.17,5.8e-06]
[1737996309854,1.4418,230.19,230.17,5.8e-06]
[1737996310052,2.868,230.19,229.93,4.1193]
[1737996310253,28.24207242,230.12,229.93,4.1193]
[1737996310553,28.24207242,230.12,229.8,102.72207242]
[1737996310554,28.24207242,230.08,229.87,28.24207242]
[1737996310855,1.3558,230.07,229.87,28.24207242]
[1737996311057,0.02749341,230.0,229.95,0.03224304]
[1737996313356,0.02749341,230.0,229.96,4.3492]
[1737996313651,0.02749341,230.0,229.95,0.03224304]
[1737996316159,28.24207242,230.12,229.95,0.03224304]
[1737996316560,28.24207242,230.12,229.91,28.24207242]
[1737996316561,4.3473,230.07,229.98,4.3489]
[1737996316761,28.24207242,230.12,229.91,28.24207242]
[1737996317157,4.347,230.09,229.99,4.3487]
[1737996317464,0.0327999,230.03,229.98,0.03073145]
[1737996317666,4.3486,230.0,229.98,0.03073145]
[1737996317861,4.3486,230.0,229.98,0.00332222]
[1737996318459,1.4415999,230.03,229.98,0.00332222]
[1737996318859,5.7896999,230.03,229.98,0.00332222]
[1737996319061,1.4415999,230.03,229.98,0.00332222]
[1737996319462,5.7896999,230.03,229.98,0.00332222]
[1737996319662,1.4415999,230.03,229.98,0.00332222]
[1737996319857,4.3483,230.02,229.98,0.00332222]
[1737996320067,1.4415999,230.03,229.98,0.00332222]
[1737996320564,4.3485,230.0,229.98,0.00332222]
[1737996320761,0.0327999,230.03,229.98,0.00332222]
[1737996322266,4.3487,229.99,229.98,0.00332222]
[1737996322666,0.0327999,230.03,229.98,0.00332222]
[1737996324271,4.3487,229.99,229.98,0.00332222]
[1737996325061,0.0327999,230.03,229.98,0.00332222]
[1737996326572,0.0327999,230.03,229.98,4.35222222]
[1737996326772,0.0327999,230.03,229.98,0.00332222]
[1737996327174,1.3215,230.15,229.98,28.24539464]
[1737996327472,1.3215,230.15,229.98,28.24207242]
[1737996327873,4.3467,230.1,230.03,4.348]
[1737996328067,1.3215,230.15,229.95,2.8602]
[1737996328265,4.3492,229.97,229.9,32.59237242]
[1737996328465,28.27096958,230.07,230.03,6.364e-05]
[1737996328672,28.24207242,230.07,229.86,28.24207242]
[1737996329476,4.3487,230.0,229.92,4.35]
[1737996329773,0.02887101,229.99,229.94,0.03043617]
[1737996330167,1.4358,230.1,229.9,28.24207242]
[1737996330370,0.03099559,229.99,229.94,0.02823531]
[1737996330670,28.24207242,230.07,229.86,28.24207242]
[1737996330870,0.02765398,229.99,229.94,0.02961779]
[1737996331273,4.3494,229.96,229.94,0.02961779]
[1737996331574,0.02765398,229.99,229.94,0.02961779]
[1737996333276,28.24207242,230.19,229.98,28.24207242]
[1737996333475,28.24207242,230.19,229.99,1.3458]
[1737996334072,28.24207242,230.11,229.95,1.3323]
[1737996334478,0.02931921,230.05,230.01,0.0299903]
[1737996335575,28.24207242,230.19,230.01,0.0299903]
[1737996336069,1.3343,230.21,230.06,28.24207242]
[1737996336268,17.32783529,230.17,230.06,23.08056657]
[1737996336474,17.32783529,230.17,229.95,1.3323]
[1737996336675,0.0275602,230.14,230.09,0.02795845]
[1737996336877,17.32783529,230.17,230.06,28.24207242]
[1737996337180,0.03297476,230.14,230.09,0.03315195]
[1737996337582,4.3463,230.12,230.09,0.03315195]
[1737996338076,0.03297476,230.14,230.09,0.03315195]
[1737996338679,0.03297476,230.14,230.09,5.195e-05]
[1737996338979,4.3467,230.1,230.09,5.195e-05]
[1737996339179,0.03297476,230.14,230.09,5.195e-05]
[1737996339380,4.3467,230.1,230.09,5.195e-05]
[1737996341382,1.413,230.13,229.96,1.4402]
[1737996341980,4.3473,230.07,229.96,1.4402]
[1737996342683,0.03078501,230.04,229.99,0.02938096]
[1737996342879,0.03078501,230.04,229.99,4.37808096]
[1737996343080,0.03078501,230.04,229.96,1.4402]
[1737996343286,0.03078501,230.04,229.99,0.02896506]
[1737996343985,4.3485,230.0,229.99,0.02896506]
[1737996344184,28.24207242,230.03,229.86,2.6898]
[1737996344385,28.24207242,229.99,229.86,1.3683]
[1737996344786,28.24207242,229.99,229.81,1.3743]
[1737996345081,28.24207242,229.91,229.73,1.3683]
[1737996345481,28.24207242,229.86,229.69,1.3683]
[1737996345784,2.7552,229.85,229.69,1.3683]
[1737996345982,0.02993914,229.8,229.75,0.03328037]
[1737996346788,4.38243914,229.8,229.75,0.03328037]
[1737996346986,0.02993914,229.8,229.75,0.03328037]
[1737996347987,0.02993914,229.8,229.75,4.38648037]
[1737996348988,0.02993914,229.8,229.75,0.03328037]
[1737996349386,0.02993914,229.8,229.75,4.38648037]
[1737996349690,0.02993914,229.8,229.75,0.03328037]
[1737996349890,17.32783529,229.92,229.75,0.03328037]
[1737996350090,17.32783529,229.92,229.76,28.24207242]
[1737996351083,17.32783529,229.92,229.82,0.0297548]
[1737996351286,0.03149383,229.86,229.82,0.0297548]
[1737996352383,4.3516,229.84,229.82,0.0297548]
[1737996353288,0.03149383,229.86,229.82,0.0297548]
[1737996354190,0.03149383,229.86,229.82,4.3815548]
[1737996354393,0.03149383,229.86,229.82,0.0297548]
[1737996355191,0.03149383,229.86,229.83,4.3518]
[1737996356186,4.35,229.93,229.85,4.3514]
[1737996356395,18.73743529,230.02,229.92,28.24207242]
[1737996356396,17.32783529,230.02,229.92,28.24207242]
[1737996356690,4.349,229.98,229.93,5.6678]
[1737996356887,17.32783529,230.02,229.93,5.6678]
[1737996357091,17.32783529,230.02,229.93,1.318]
[1737996357289,17.32783529,230.05,229.96,28.24207242]
[1737996357495,0.02981537,230.0,229.96,21.68850349]
[1737996357891,0.02981537,230.0,229.99,4.3487]
[1737996358491,0.02981537,230.0,229.96,21.68850349]
[1737996359095,0.02981537,230.0,229.95,0.02881597]
[1737996359589,0.02981537,230.0,229.96,4.3493]
[1737996359785,3.78082252,230.23,229.96,28.24207242]
[1737996359988,3.78082252,230.23,229.95,0.02881597]
[1737996359989,4.1628,230.22,230.06,28.24207242]
[1737996360193,17.32783529,230.25,230.1,28.24207242]
[1737996360386,17.32783529,230.25,230.14,28.24207242]
[1737996360985,0.03225796,230.22,230.17,0.02928259]
[1737996361191,4.3468,230.1,230.02,28.24207242]
[1737996361398,0.03225796,230.22,230.03,0.86945181]
[1737996361592,17.32783529,230.25,230.06,28.24207242]
[1737996361788,28.24207242,230.23,230.03,0.86945181]
[1737996361989,28.24207242,230.11,230.03,0.86945181]
[1737996362194,1.3853,230.1,229.91,28.24207242]
[1737996362391,2.8194,230.1,229.87,28.24207242]
[1737996362593,0.03193631,230.09,230.05,9.077e-05]
[1737996362793,4.3483,230.02,229.89,4.3505]
[1737996363093,2.8194,230.1,229.9,0.86994345]
[1737996363293,28.24207242,230.07,229.9,0.86994345]
[1737996363899,0.03223704,230.01,229.96,0.03101118]
[1737996364691,4.349,229.98,229.96,0.03101118]
[1737996365296,0.03223704,230.01,229.96,0.03101118]
[1737996366997,0.03223704,230.01,229.98,4.3489]
[1737996367194,0.03223704,230.01,229.96,28.2730836]
[1737996367397,28.24207242,230.16,229.97,1.3668]
[1737996367693,28.24207242,230.16,229.92,28.24207242]
[1737996367999,28.24207242,230.16,229.93,1.3668]
[1737996368303,4.3479,230.04,229.95,4.3494]
[1737996368498,0.02816685,230.07,230.02,0.03263186]
[1737996368801,28.24207242,230.12,229.93,1.3668]
[1737996368997,0.02754573,230.07,230.02,0.02766695]
[1737996369597,0.02754573,230.07,230.05,4.3474]
[1737996369799,28.24207242,230.2,230.02,0.02766695]
[1737996370193,28.24207242,230.2,230.01,28.24207242]
[1737996370398,4.1407,230.21,230.01,28.24207242]
[1737996370800,28.24207242,230.2,229.97,28.24207242]
[1737996370998,4.3468,230.1,230.09,0.03250364]
[1737996371204,0.03018709,230.13,230.09,0.03250364]
[1737996371404,4.37628709,230.13,230.09,0.03250364]
[1737996371800,0.03018709,230.13,230.09,0.03250364]
[1737996372005,113.59257503,230.39,230.09,28.27457606]
[1737996372006,74.41255496,230.36,230.09,28.27457606]
[1737996372203,5.01375706,230.32,230.16,28.24207242]
[1737996372397,0.86839477,230.31,230.16,28.24207242]
[1737996372602,28.24207242,230.28,230.07,28.24207242]
[1737996373205,0.02952613,230.2,230.15,0.02898447]
[1737996373603,0.86839477,230.31,230.14,4.3458]
[1737996373804,0.03322954,230.2,230.15,0.02851529]
[1737996374005,4.3438,230.26,230.18,4.3451]
[1737996374306,0.03078854,230.2,230.15,28.27276357]
[1737996374505,0.86839477,230.31,230.19,28.24207242]
[1737996374705,0.86839477,230.31,230.28,28.24207242]
[1737996375205,0.86839477,230.31,230.29,4.343]
[1737996375502,0.86839477,230.31,230.28,28.24207242]
[1737996375803,5.81696533,230.42,230.28,28.27506716]
[1737996376007,5.81696533,230.42,230.33,28.24207242]
[1737996376201,5.81696533,230.42,230.28,28.24207242]
[1737996376605,28.24207242,230.49,230.35,0.03081672]
[1737996376909,29.10978902,230.49,230.35,0.03081672]
[1737996377108,0.86775425,230.48,230.28,28.24207242]
[1737996377312,0.86775425,230.48,230.29,28.24207242]
[1737996377513,28.24207242,230.45,230.4,1.342e-05]
[1737996377713,0.02989403,230.41,230.21,28.24207242]
[1737996377914,28.27196645,230.41,230.21,28.24207242]
[1737996378212,28.24207242,230.41,230.21,28.24207242]
[1737996378614,4.3425,230.32,230.29,0.02817454]
[1737996378819,0.03211137,230.33,230.29,0.02817454]
[1737996379313,4.3429,230.3,230.21,13.72820684]
[1737996379613,1.3713,230.4,230.17,28.24207242]
[1737996380014,28.24207242,230.37,230.17,28.24207242]
[1737996380208,2.7297,230.36,230.17,28.24207242]
[1737996380413,0.02759828,230.29,230.25,0.03171785]
[1737996380611,0.02759828,230.29,230.08,2.7576]
[1737996380810,4.3453,230.18,230.08,2.7576]
[1737996381119,1.4187,230.28,230.08,2.7576]
[1737996381409,4.3443,230.23,230.14,4.3459]
[1737996381619,1.4187,230.28,230.08,2.7576]
[1737996381918,0.02912464,230.21,230.16,0.03275915]
[1737996382114,4.37382464,230.21,230.16,0.03275915]
[1737996382409,0.02912464,230.21,230.16,0.03275915]
[1737996382709,4.3453,230.18,230.16,0.03275915]
[1737996383317,0.02912464,230.21,230.16,0.03275915]
[1737996383318,0.02912464,230.21,230.16,4.37825915]
[1737996383613,0.02912464,230.21,230.16,0.03275915]
[1737996383808,0.02912464,230.21,230.18,4.3451]
[1737996384013,1.4021,230.35,230.19,28.24207242]
[1737996384510,28.24207242,230.28,230.07,28.24207242]
[1737996384716,28.24207242,230.28,230.03,28.24207242]
[1737996384909,28.24207242,230.24,230.03,28.24207242]
[1737996385211,1.4021,230.23,230.13,0.0309409]
[1737996385416,4.3459,230.14,230.13,0.0309409]
[1737996387112,0.02876127,230.18,230.13,0.0309409]
[1737996387611,4.3457,230.15,230.13,0.0309409]
[1737996388209,0.02876127,230.18,230.13,0.0309409]
[1737996388813,4.3456,230.16,230.13,0.0309409]
[1737996389117,0.02876127,230.18,230.13,0.0309409]
[1737996389611,4.3455,230.16,230.13,0.0309409]
[1737996390006,0.02876127,230.18,230.13,0.0309409]
[1737996390909,4.3459,230.14,230.13,0.0309409]
[1737996391214,0.02876127,230.18,230.13,0.0309409]
[1737996391410,4.3454,230.17,230.13,0.0309409]
[1737996392721,0.02876127,230.18,230.13,0.0309409]
[1737996393021,34.05903775,230.36,230.15,28.24207242]
[1737996393322,28.24207242,230.32,230.11,28.24207242]
[1737996393515,28.24207242,230.28,230.08,1.3093]
[1737996393812,4.3453,230.18,230.11,4.3464]
[1737996394128,28.24207242,230.28,230.08,1.3093]
[1737996394308,0.03194559,230.17,230.12,0.027379]
[1737996394720,28.24207242,230.28,230.08,1.3093]
[1737996394913,0.03059,230.17,230.12,0.03232456]
[1737996395420,4.141,230.35,230.15,28.24207242]
[1737996395621,4.141,230.35,230.2,28.24207242]
[1737996396420,5.81696533,230.4,230.24,28.24207242]
[1737996396719,1.3316,230.41,230.28,28.24207242]
[1737996396917,1.3316,230.41,230.24,28.24207242]
[1737996397120,1.3316,230.41,230.32,0.02972334]
[1737996397618,2.8087,230.43,230.32,0.02972334]
[1737996398014,23.14480062,230.45,230.36,28.24207242]
[1737996398410,23.14480062,230.45,230.29,1.3693]
[1737996398617,28.24207242,230.48,230.38,0.03341239]
[1737996398918,28.24207242,230.52,230.28,28.24207242]
[1737996399115,28.24207242,230.52,230.41,0.03010922]
[1737996399512,69.25572381,230.61,230.51,28.24207242]
[1737996400120,69.25572381,230.61,230.54,0.03205808]
[1737996400315,17.3545888,230.61,230.51,28.23005385]
[1737996400711,4.3374,230.6,230.51,28.23005385]
[1737996401317,17.3545888,230.61,230.51,28.23005385]
[1737996401524,0.02821495,230.58,230.57,28.24207242]
[1737996401918,1.3671,230.65,230.57,28.24207242]
[1737996402723,5.7035,230.65,230.57,28.24207242]
[1737996402922,1.3671,230.65,230.57,28.24207242]
[1737996403220,1.3671,230.65,230.59,0.03158333]
[1737996403718,1.3671,230.65,230.53,28.24207242]
[1737996403914,4.3369,230.62,230.6,0.02902161]
[1737996404113,4.3369,230.62,230.53,28.24207242]
[1737996404114,1.3671,230.65,230.53,28.24207242]
[1737996405020,1.3671,230.65,230.57,28.24207242]
[1737996405323,1.4188,230.78,230.57,28.27313929]
[1737996405620,0.03294085,230.63,230.57,28.27313929]
[1737996408020,4.3375,230.59,230.57,28.27313929]
[1737996408425,0.03294085,230.63,230.57,28.27313929]
[1737996408722,4.36974085,230.63,230.57,28.27313929]
[1737996408923,0.03294085,230.63,230.61,28.24207242]
[1737996409621,0.03294085,230.63,230.57,28.27313929]
[1737996410220,4.3375,230.59,230.57,28.27313929]
[1737996410420,0.03294085,230.63,230.57,28.27313929]
[1737996410619,0.03294085,230.63,230.61,28.24207242]
[1737996411820,1.3542,230.76,230.61,28.24207242]
[1737996412021,1.3542,230.76,230.57,0.03106687]
[1737996412022,1.3667,230.77,230.7,28.24207242]
[1737996412524,1.3667,230.77,230.66,28.24207242]
[1737996413022,1.4225,230.85,230.69,0.02997678]
[1737996413227,30.99757242,230.94,230.73,28.24207242]
[1737996413627,30.99757242,230.94,230.81,0.0290373]
[1737996414023,4.3331,230.82,230.81,0.0290373]
[1737996415725,2.7555,230.94,230.81,0.0290373]
[1737996416430,2.7555,230.94,230.81,28.27110972]
[1737996417929,1.4045,230.94,230.81,28.27110972]
[1737996418425,5.7533,230.95,230.86,4.3323]
[1737996418630,223.14142183,230.99,230.85,28.24207242]
[1737996418826,1.3951,230.98,230.88,0.03162]
[1737996420236,4.3316,230.9,230.88,0.03162]
[1737996420632,1.3951,230.98,230.88,0.03162]
[1737996420832,1.3951,230.98,230.89,28.24207242]
[1737996421034,1.3951,230.98,230.88,0.03162]
[1737996421233,4.3318,230.89,230.88,0.03162]
[1737996421433,4.3318,230.89,230.88,2e-05]
[1737996421735,1.3951,230.98,230.77,28.24207242]
[1737996422037,28.24207242,230.95,230.73,28.24207242]
[1737996422738,0.03100034,230.86,230.82,3.927e-05]
[1737996422940,4.3329,230.83,230.82,3.927e-05]
[1737996424034,32.57497242,230.83,230.82,3.927e-05]
[1737996424240,4.3329,230.83,230.82,3.927e-05]
[1737996429445,0.0304725,230.85,230.82,3.927e-05]
[1737996429741,2.8123,230.98,230.86,4.3322]
[1737996429937,2.8123,230.98,230.87,28.24207242]
[1737996430143,1.3024,231.08,230.91,28.24207242]
[1737996430343,4.3289,231.05,230.95,28.24207242]
[1737996430544,28.24207242,231.11,230.91,28.24207242]
[1737996430745,28.24207242,231.11,230.87,28.24207242]
[1737996430944,0.0301981,231.02,230.77,1.3908]
[1737996431140,28.24207242,230.99,230.77,1.3908]
[1737996431445,28.24207242,230.95,230.73,28.24207242]
[1737996431647,0.79617806,230.94,230.73,28.24207242]
[1737996432247,4.3327,230.84,230.81,0.02825056]
[1737996432450,0.03082008,230.86,230.81,0.02825056]
[1737996433651,0.03082008,230.86,230.81,5.056e-05]